fUSD/lending_fUSD_20240214
["ID","MTS","AMOUNT","RATE_DAILY","PERIOD"]
[313993854,1707918694024,-172.15221478,0.00037775,60]
[313993855,1707918694034,-506.66446464,0.00037775,4]
[313993856,1707918694044,-3315.42078673,0.00037776,2]
[313993857,1707918694055,-300.02,0.00037776,2]
[313993858,1707918694065,-69019.18972189,0.00037777,2]
[313993859,1707918694076,-306.54438904,0.00037798,4]
[313993860,1707918694086,-100000.0,0.000378,2]
[313993861,1707918694096,-158.0,0.000378,7]
[313993862,1707918694107,-267.76869445,0.00037805,2]
[313993863,1707918694117,-150.0,0.00037807,2]
[313993864,1707918694128,-200.0,0.00037807,19]
[313993865,1707918694139,-500.0,0.00037808,2]
[313993866,1707918694150,-306.44321427,0.00037808,2]
[313993867,1707918694160,-500.0,0.00037808,2]
[313993868,1707918694171,-500.0,0.00037808,2]
[313993869,1707918694181,-500.0,0.00037808,2]
[313993870,1707918694192,-500.0,0.00037808,2]
[313993871,1707918694204,-150.0,0.00037808,2]
[313993872,1707918694214,-500.0,0.00037808,2]
[313993873,1707918694225,-500.0,0.00037808,2]
[313993874,1707918694236,-500.0,0.00037808,2]
[313993875,1707918694248,-500.0,0.00037808,2]
[313993876,1707918694259,-500.0,0.00037808,2]
[313993877,1707918694271,-500.0,0.00037808,2]
[313993878,1707918694283,-500.0,0.00037808,2]
[313993879,1707918694294,-500.0,0.00037808,2]
[313993880,1707918694304,-500.0,0.00037808,2]
[313993881,1707918694315,-500.0,0.00037808,2]
[313993882,1707918694326,-500.0,0.00037808,2]
[313993883,1707918694338,-424.38733442,0.00037808,2]
[313993884,1707918694348,-666.65,0.00037808,2]
[313993885,1707918694359,-591.48220799,0.00037808,2]
[313993886,1707918694369,-162.27804319,0.00037808,2]
[313993887,1707918694380,-500.0,0.00037808,2]
[313993888,1707918694390,-500.0,0.00037808,2]
[313993889,1707918694400,-500.0,0.00037808,2]
[313993890,1707918694410,-500.0,0.00037808,2]
[313993891,1707918694420,-500.0,0.00037808,2]
[313993892,1707918694430,-500.0,0.00037808,2]
[313993893,1707918694440,-500.0,0.00037808,2]
[313993894,1707918694450,-500.0,0.00037808,2]
[313993895,1707918694460,-500.0,0.00037808,2]
[313993896,1707918694470,-500.0,0.00037808,2]
[313993897,1707918694480,-500.0,0.00037808,2]
[313993898,1707918694489,-610.71,0.00037808,2]
[313993899,1707918694499,-500.0,0.00037808,2]
[313993900,1707918694509,-500.0,0.00037808,2]
[313993901,1707918694521,-500.0,0.00037808,2]
[313993902,1707918694531,-506.8191254,0.00037808,2]
[313993903,1707918694541,-500.0,0.00037808,2]
[313993904,1707918694552,-500.0,0.00037808,2]
[313993905,1707918694562,-500.0,0.00037808,2]
[313993906,1707918694572,-500.0,0.00037808,2]
[313993907,1707918694583,-554.07,0.00037808,2]
[313993908,1707918694593,-542.31,0.00037808,2]
[313993909,1707918694603,-500.52394977,0.00037808,2]
[313993910,1707918694614,-500.0,0.00037808,2]
[313993911,1707918694624,-680.98,0.00037808,2]
[313993912,1707918694634,-500.0,0.00037808,2]
[313993913,1707918694647,-500.0,0.00037808,2]
[313993914,1707918694657,-500.0,0.00037808,2]
[313993915,1707918694667,-564.97,0.00037808,2]
[313993916,1707918694677,-500.0,0.00037808,2]
[313993917,1707918694687,-500.0,0.00037808,2]
[313993918,1707918694697,-1037.12,0.00037808,2]
[313993919,1707918694707,-639.43,0.00037808,2]
[313993920,1707918694718,-500.0,0.00037808,2]
[313993921,1707918694728,-500.0,0.00037808,2]
[313993922,1707918694738,-593.09,0.00037808,2]
[313993923,1707918694748,-662.66,0.00037808,2]
[313993924,1707918694758,-586.77,0.00037808,2]
[313993925,1707918694769,-500.0,0.00037808,2]
[313993926,1707918694780,-752.61,0.00037808,2]
[313993927,1707918694790,-781.56,0.00037808,2]
[313993928,1707918694800,-500.0,0.00037808,2]
[313993929,1707918694810,-500.0,0.00037808,2]
[313993930,1707918694820,-686.38,0.00037808,2]
[313993931,1707918694830,-538.8,0.00037808,2]
[313993932,1707918694840,-500.0,0.00037808,2]
[313993933,1707918694850,-446.84015632,0.00037808,2]
[313993934,1707918694860,-500.0,0.00037808,2]
[313993935,1707918694871,-500.0,0.00037808,2]
[313993936,1707918694881,-500.0,0.00037808,2]
[313993937,1707918694891,-500.0,0.00037808,2]
[313993938,1707918694901,-500.0,0.00037808,2]
[313993939,1707918694911,-567.0800171,0.00037808,2]
[313993940,1707918694921,-1037.01291663,0.00037808,7]
[313993941,1707918694932,-500.0,0.00037808,2]
[313993942,1707918694942,-538.79,0.00037808,2]
[313993943,1707918694952,-500.0,0.00037808,2]
[313993944,1707918694962,-1088.05,0.00037808,2]
[313993945,1707918694973,-500.0,0.00037808,2]
[313993946,1707918694984,-740.2,0.00037808,2]
[313993947,1707918694994,-1131.8,0.00037808,2]
[313993948,1707918695005,-500.0,0.00037808,2]
[313993949,1707918695017,-688.02,0.00037808,2]
[313993950,1707918695028,-500.0,0.00037808,2]
[313993951,1707918695039,-500.0,0.00037808,2]
[313993952,1707918695051,-1651.95,0.00037808,2]
[313993953,1707918695061,-525.42,0.00037808,2]
[313993954,1707918695072,-500.0,0.00037808,2]
[313993955,1707918695083,-769.2,0.00037808,2]
[313993956,1707918695094,-500.0,0.00037808,2]
[313993957,1707918695104,-500.0,0.00037808,2]
[313993958,1707918695115,-184.24460802,0.00037808,2]
[313993959,1707918695126,-500.0,0.00037808,2]
[313993960,1707918695137,-520.74332389,0.00037808,2]
[313993961,1707918695147,-500.0,0.00037808,2]
[313993962,1707918695158,-994.52,0.00037808,2]
[313993963,1707918695169,-500.0,0.00037808,2]
[313993964,1707918695180,-1207.68,0.00037808,2]
[313993965,1707918695192,-794.62245115,0.00037808,2]
[313993966,1707918695203,-644.98,0.00037808,2]
[313993967,1707918695213,-500.0,0.00037808,2]
[313993968,1707918695223,-1105.47,0.00037808,2]
[313993969,1707918695234,-899.54,0.00037808,2]
[313993970,1707918695245,-500.0,0.00037808,2]
[313993971,1707918695256,-500.0,0.00037808,2]
[313993972,1707918695268,-686.26,0.00037808,2]
[313993973,1707918695279,-859.98,0.00037808,2]
[313993974,1707918695290,-964.36,0.00037808,2]
[313993975,1707918695301,-500.0,0.00037808,2]
[313993976,1707918695312,-509.76,0.00037808,2]
[313993977,1707918695322,-1087.88,0.00037808,2]
[313993978,1707918695337,-885.89,0.00037808,2]
[313993979,1707918695349,-500.0,0.00037808,2]
[313993980,1707918695360,-1467.73,0.00037808,2]
[313993981,1707918695370,-799.09,0.00037808,2]
[313993982,1707918695380,-500.0,0.00037808,2]
[313993983,1707918695391,-500.0,0.00037808,2]
[313993984,1707918695401,-542.62,0.00037808,2]
[313993985,1707918695412,-873.25,0.00037808,2]
[313993986,1707918695422,-1208.48,0.00037808,2]
[313993987,1707918695433,-595.65,0.00037808,2]
[313993988,1707918695444,-1125.43,0.00037808,2]
[313993989,1707918695454,-500.0,0.00037808,2]
[313993990,1707918695464,-640.41,0.00037808,2]
[313993991,1707918695476,-1575.86,0.00037808,2]
[313993992,1707918695486,-500.0,0.00037808,2]
[313993993,1707918695496,-609.63,0.00037808,2]
[313993994,1707918695507,-500.0,0.00037808,2]
[313993995,1707918695517,-738.2,0.00037808,2]
[313993996,1707918695527,-553.78,0.00037808,2]
[313993997,1707918695538,-585.93,0.00037808,2]
[313993998,1707918695548,-863.16,0.00037808,2]
[313993999,1707918695558,-1318.95,0.00037808,2]
[313994000,1707918695569,-500.0,0.00037808,2]
[313994001,1707918695580,-632.49,0.00037808,2]
[313994002,1707918695590,-878.83,0.00037808,2]
[313994003,1707918695600,-500.0,0.00037808,2]
[313994004,1707918695611,-837.17,0.00037808,2]
[313994005,1707918695622,-659.26,0.00037808,2]
[313994006,1707918695636,-1230.61,0.00037808,2]
[313994007,1707918695647,-500.0,0.00037808,2]
[313994008,1707918695657,-500.0,0.00037808,2]
[313994009,1707918695667,-500.0,0.00037808,2]
[313994010,1707918695677,-1303.9,0.00037808,2]
[313994011,1707918695688,-500.0,0.00037808,2]
[313994012,1707918695698,-1302.02,0.00037808,2]
[313994013,1707918695711,-695.14,0.00037808,2]
[313994014,1707918695721,-997.21,0.00037808,2]
[313994015,1707918695731,-1326.61,0.00037808,2]
[313994016,1707918695741,-500.0,0.00037808,2]
[313994017,1707918695752,-500.0,0.00037808,2]
[313994018,1707918695763,-500.0,0.00037808,2]
[313994019,1707918695774,-534.10225081,0.00037808,2]
[313994020,1707918695785,-500.0,0.00037808,2]
[313994021,1707918695795,-1210.25,0.00037808,2]
[313994022,1707918695806,-1036.2,0.00037808,2]
[313994023,1707918695817,-500.0,0.00037808,2]
[313994024,1707918695827,-500.0,0.00037808,2]
[313994025,1707918695837,-500.0,0.00037808,2]
[313994026,1707918695847,-500.0,0.00037808,2]
[313994027,1707918695857,-1554.02,0.00037808,2]
[313994028,1707918695867,-794.8,0.00037808,2]
[313994029,1707918695878,-500.0,0.00037808,2]
[313994030,1707918695888,-825.62,0.00037808,2]
[313994031,1707918695898,-639.39,0.00037808,2]
[313994032,1707918695908,-1028.27,0.00037808,2]
[313994033,1707918695919,-500.0,0.00037808,2]
[313994034,1707918695929,-500.0,0.00037808,2]
[313994035,1707918695940,-500.0,0.00037808,2]
[313994036,1707918695950,-500.0,0.00037808,2]
[313994037,1707918695960,-1356.73,0.00037808,2]
[313994038,1707918695971,-1099.78,0.00037808,2]
[313994039,1707918695981,-1213.75,0.00037808,2]
[313994040,1707918695992,-995.39,0.00037808,2]
[313994041,1707918696002,-500.0,0.00037808,2]
[313994042,1707918696012,-646.45,0.00037808,2]
[313994043,1707918696024,-1321.75,0.00037808,2]
[313994044,1707918696035,-500.0,0.00037808,2]
[313994045,1707918696045,-1084.13,0.00037808,2]
[313994046,1707918696055,-1094.34,0.00037808,2]
[313994047,1707918696066,-500.0,0.00037808,7]
[313994048,1707918696076,-529.24,0.00037808,2]
[313994049,1707918696087,-250.0,0.00037808,2]
[313994050,1707918696098,-500.0,0.00037808,2]
[313994051,1707918696108,-500.0,0.00037808,2]
[313994052,1707918696119,-1288.85,0.00037808,2]
[313994053,1707918696130,-500.0,0.00037808,2]
[313994054,1707918696140,-500.0,0.00037808,2]
[313994055,1707918696152,-613.15,0.00037808,2]
[313994056,1707918696162,-740.98,0.00037808,2]
[313994057,1707918696173,-500.0,0.00037808,2]
[313994058,1707918696184,-500.0,0.00037808,2]
[313994059,1707918696194,-918.21,0.00037808,2]
[313994060,1707918696205,-790.84,0.00037808,2]
[313994061,1707918696215,-1413.05,0.00037808,2]
[313994062,1707918696226,-1413.61,0.00037808,2]
[313994063,1707918696236,-754.17,0.00037808,2]
[313994064,1707918696247,-768.11,0.00037808,2]
[313994065,1707918696258,-500.0,0.00037808,2]
[313994066,1707918696268,-483.31133212,0.00037808,2]
[313994067,1707918696279,-1147.8,0.00037808,2]
[313994068,1707918696289,-500.0,0.00037808,2]
[313994069,1707918696300,-150.0,0.00037808,2]
[313994070,1707918696310,-500.0,0.00037808,2]
[313994071,1707918696321,-884.99,0.00037808,2]
[313994072,1707918696331,-1363.27,0.00037808,2]
[313994073,1707918696341,-944.25,0.00037808,2]
[313994074,1707918696351,-500.0,0.00037808,2]
[313994075,1707918696362,-500.0,0.00037808,2]
[313994076,1707918696372,-516.45,0.00037808,2]
[313994077,1707918696382,-1338.49,0.00037808,2]
[313994078,1707918696393,-500.0,0.00037808,2]
[313994079,1707918696403,-721.42,0.00037808,2]
[313994080,1707918696413,-618.77479149,0.00037808,2]
[313994081,1707918696424,-500.0,0.00037808,2]
[313994082,1707918696433,-1332.5,0.00037808,2]
[313994083,1707918696443,-617.74,0.00037808,2]
[313994084,1707918696453,-500.0,0.00037808,2]
[313994085,1707918696464,-1122.42,0.00037808,2]
[313994086,1707918696474,-500.0,0.00037808,2]
[313994087,1707918696484,-500.0,0.00037808,2]
[313994088,1707918696494,-812.15,0.00037808,2]
[313994089,1707918696504,-1122.49,0.00037808,2]
[313994090,1707918696515,-2014.14,0.00037808,2]
[313994091,1707918696607,-500.0,0.00037808,2]
[313994092,1707918696617,-457.63841942,0.00037808,2]
[313994093,1707918696627,-500.0,0.00037808,2]
[313994094,1707918696638,-636.6,0.00037808,2]
[313994095,1707918696651,-500.0,0.00037808,2]
[313994096,1707918696661,-993.94,0.00037808,2]
[313994097,1707918696671,-500.0,0.00037808,2]
[313994098,1707918696681,-500.0,0.00037808,2]
[313994099,1707918696691,-667.57,0.00037808,2]
[313994100,1707918696701,-504.7,0.00037808,2]
[313994101,1707918696711,-500.0,0.00037808,2]
[313994102,1707918696721,-500.0,0.00037808,2]
[313994103,1707918696733,-500.0,0.00037808,2]
[313994104,1707918696744,-1764.29,0.00037808,2]
[313994105,1707918696754,-778.77,0.00037808,2]
[313994106,1707918696764,-2191.16,0.00037808,2]
[313994107,1707918696776,-591.81,0.00037808,2]
[313994108,1707918696785,-500.0,0.00037808,2]
[313994109,1707918696795,-500.0,0.00037808,2]
[313994110,1707918696805,-500.0,0.00037808,2]
[313994111,1707918696815,-1816.87,0.00037808,2]
[313994112,1707918696825,-796.54,0.00037808,2]
[313994113,1707918696836,-509.57,0.00037808,2]
[313994114,1707918696845,-510.03,0.00037808,2]
[313994115,1707918696855,-711.35,0.00037808,2]
[313994116,1707918696865,-500.0,0.00037808,2]
[313994117,1707918696876,-500.0,0.00037808,2]
[313994118,1707918696886,-757.25,0.00037808,2]
[313994119,1707918696895,-1499.13,0.00037808,2]
[313994120,1707918696905,-500.0,0.00037808,2]
[313994121,1707918696915,-500.0,0.00037808,2]
[313994122,1707918696926,-566.41,0.00037808,2]
[313994123,1707918696936,-706.01,0.00037808,2]
[313994124,1707918696947,-261.96,0.00037808,2]
[313994125,1707918696957,-1377.12,0.00037808,2]
[313994126,1707918696968,-500.0,0.00037808,2]
[313994127,1707918696978,-1227.9,0.00037808,2]
[313994128,1707918696989,-996.41,0.00037808,2]
[313994129,1707918697000,-644.19,0.00037808,2]
[313994130,1707918697010,-2029.29,0.00037808,2]
[313994131,1707918697019,-1069.18,0.00037808,2]
[313994132,1707918697029,-514.5,0.00037808,2]
[313994133,1707918697039,-1406.43,0.00037808,2]
[313994134,1707918697049,-500.0,0.00037808,2]
[313994135,1707918697060,-1046.25,0.00037808,2]
[313994136,1707918697069,-500.0,0.00037808,2]
[313994137,1707918697080,-1134.09,0.00037808,2]
[313994138,1707918697091,-500.0,0.00037808,2]
[313994139,1707918697101,-729.05,0.00037808,2]
[313994140,1707918697111,-622.27,0.00037808,2]
[313994141,1707918697121,-500.0,0.00037808,2]
[313994142,1707918697131,-500.0,0.00037808,2]
[313994143,1707918697141,-500.0,0.00037808,2]
[313994144,1707918697151,-500.0,0.00037808,2]
[313994145,1707918697161,-1071.7,0.00037808,2]
[313994146,1707918697172,-500.0,0.00037808,2]
[313994147,1707918697182,-762.21,0.00037808,2]
[313994148,1707918697192,-500.0,0.00037808,2]
[313994149,1707918697202,-500.0,0.00037808,2]
[313994150,1707918697212,-517.99,0.00037808,2]
[313994151,1707918697223,-1842.99,0.00037808,2]
[313994152,1707918697233,-500.0,0.00037808,2]
[313994153,1707918697244,-500.0,0.00037808,2]
[313994154,1707918697255,-714.9,0.00037808,2]
[313994155,1707918697265,-500.0,0.00037808,2]
[313994156,1707918697276,-500.0,0.00037808,2]
[313994157,1707918697286,-505.27,0.00037808,2]
[313994158,1707918697296,-500.0,0.00037808,2]
[313994159,1707918697305,-1657.14,0.00037808,2]
[313994160,1707918697315,-609.86,0.00037808,2]
[313994161,1707918697324,-500.0,0.00037808,2]
[313994162,1707918697334,-500.0,0.00037808,2]
[313994163,1707918697343,-500.0,0.00037808,2]
[313994164,1707918697353,-500.0,0.00037808,2]
[313994165,1707918697363,-500.0,0.00037808,2]
[313994166,1707918697373,-500.0,0.00037808,2]
[313994167,1707918697383,-1211.81,0.00037808,2]
[313994168,1707918697393,-500.0,0.00037808,2]
[313994169,1707918697403,-500.0,0.00037808,2]
[313994170,1707918697413,-500.0,0.00037808,2]
[313994171,1707918697423,-521.97,0.00037808,2]
[313994172,1707918697433,-500.0,0.00037808,2]
[313994173,1707918697443,-500.0,0.00037808,2]
[313994174,1707918697453,-1086.38,0.00037808,2]
[313994175,1707918697463,-636.91,0.00037808,2]
[313994176,1707918697473,-1000.0,0.00037808,7]
[313994177,1707918697484,-500.0,0.00037808,2]
[313994178,1707918697494,-500.0,0.00037808,2]
[313994179,1707918697504,-500.0,0.00037808,2]
[313994180,1707918697514,-590.73,0.00037808,2]
[313994181,1707918697525,-846.95,0.00037808,2]
[313994182,1707918697535,-500.0,0.00037808,2]
[313994183,1707918697546,-500.0,0.00037808,2]
[313994184,1707918697555,-500.0,0.00037808,2]
[313994185,1707918697565,-500.0,0.00037808,2]
[313994186,1707918697575,-551.44,0.00037808,2]
[313994187,1707918697585,-608.15,0.00037808,2]
[313994188,1707918697595,-514.68533102,0.00037808,2]
[313994189,1707918697605,-500.0,0.00037808,2]
[313994190,1707918697616,-500.0,0.00037808,2]
[313994191,1707918697627,-524.06,0.00037808,2]
[313994192,1707918697637,-797.65,0.00037808,2]
[313994193,1707918697650,-500.0,0.00037808,2]
[313994194,1707918697659,-500.0,0.00037808,2]
[313994195,1707918697671,-640.14,0.00037808,2]
[313994196,1707918697680,-625.76050996,0.00037808,2]
[313994197,1707918697690,-500.0,0.00037808,2]
[313994198,1707918697700,-500.0,0.00037808,2]
[313994199,1707918697711,-789.73,0.00037808,2]
[313994200,1707918697722,-500.0,0.00037808,2]
[313994201,1707918697733,-610.3,0.00037808,2]
[313994202,1707918697743,-500.0,0.00037808,2]
[313994203,1707918697753,-903.49,0.00037808,2]
[313994204,1707918697762,-650.72,0.00037808,2]
[313994205,1707918697773,-367.13638037,0.00037808,2]
[313994206,1707918697783,-500.0,0.00037808,2]
[313994207,1707918697793,-500.0,0.00037808,2]
[313994208,1707918697803,-500.0,0.00037808,2]
[313994209,1707918697813,-500.0,0.00037808,2]
[313994210,1707918697824,-500.0,0.00037808,2]
[313994211,1707918697834,-529.34737291,0.00037808,2]
[313994212,1707918697844,-500.0,0.00037808,2]
[313994213,1707918697855,-500.0,0.00037808,2]
[313994214,1707918697866,-2051.57,0.00037808,2]
[313994215,1707918697876,-500.0,0.00037808,2]
[313994216,1707918697887,-845.58,0.00037808,2]
[313994217,1707918697898,-500.0,0.00037808,2]
[313994218,1707918697908,-500.0,0.00037808,2]
[313994219,1707918697918,-1484.98,0.00037808,2]
[313994220,1707918697929,-882.95,0.00037808,2]
[313994221,1707918697939,-709.47,0.00037808,2]
[313994222,1707918697949,-500.0,0.00037808,2]
[313994223,1707918697959,-500.0,0.00037808,2]
[313994224,1707918697969,-500.0,0.00037808,2]
[313994225,1707918697979,-500.0,0.00037808,2]
[313994226,1707918697989,-1266.63,0.00037808,2]
[313994227,1707918698000,-500.0,0.00037808,2]
[313994228,1707918698011,-750.02,0.00037808,2]
[313994229,1707918698021,-725.91,0.00037808,2]
[313994230,1707918698032,-500.0,0.00037808,2]
[313994231,1707918698042,-676.49,0.00037808,2]
[313994232,1707918698052,-500.0,0.00037808,2]
[313994233,1707918698062,-1189.99,0.00037808,2]
[313994234,1707918698072,-1081.42,0.00037808,2]
[313994235,1707918698083,-1392.58,0.00037808,2]
[313994236,1707918698094,-545.48,0.00037808,2]
[313994237,1707918698104,-4833.85,0.00037808,2]
[313994238,1707918698114,-500.0,0.00037808,2]
[313994239,1707918698124,-995.85,0.00037808,2]
[313994240,1707918698133,-258.96,0.00037808,2]
[313994241,1707918698143,-500.0,0.00037808,2]
[313994242,1707918698153,-500.0,0.00037808,2]
[313994243,1707918698164,-5617.47,0.00037808,2]
[313994244,1707918698174,-500.0,0.00037808,2]
[313994245,1707918698184,-874.25,0.00037808,2]
[313994246,1707918698194,-654.98,0.00037808,2]
[313994247,1707918698204,-500.0,0.00037808,2]
[313994248,1707918698215,-500.0,0.00037808,2]
[313994249,1707918698226,-678.96,0.00037808,2]
[313994250,1707918698236,-1141.89,0.00037808,2]
[313994251,1707918698246,-500.0,0.00037808,2]
[313994252,1707918698257,-500.0,0.00037808,2]
[313994253,1707918698268,-530.39,0.00037808,2]
[313994254,1707918698278,-500.0,0.00037808,2]
[313994255,1707918698289,-500.0,0.00037808,2]
[313994256,1707918698299,-500.0,0.00037808,2]
[313994257,1707918698310,-216.25508544,0.00037808,2]
[313994258,1707918698321,-500.0,0.00037808,2]
[313994259,1707918698331,-500.0,0.00037808,2]
[313994260,1707918698342,-11536.61,0.00037808,2]
[313994261,1707918698352,-500.0,0.00037808,2]
[313994262,1707918698362,-517.23,0.00037808,2]
[313994263,1707918698374,-500.0,0.00037808,2]
[313994264,1707918698384,-500.0,0.00037808,2]
[313994265,1707918698395,-500.0,0.00037808,2]
[313994266,1707918698405,-755.03,0.00037808,2]
[313994267,1707918698415,-500.0,0.00037808,2]
[313994268,1707918698425,-500.0,0.00037808,2]
[313994269,1707918698435,-11052.97,0.00037808,2]
[313994270,1707918698445,-826.33,0.00037808,2]
[313994271,1707918698458,-844.03,0.00037808,2]
[313994272,1707918698468,-6593.78,0.00037808,2]
[313994273,1707918698479,-500.0,0.00037808,2]
[313994274,1707918698490,-518.65,0.00037808,2]
[313994275,1707918698501,-508.01805262,0.00037808,2]
[313994276,1707918698511,-1107.9,0.00037808,2]
[313994277,1707918698523,-500.0,0.00037808,2]
[313994278,1707918698534,-500.0,0.00037808,2]
[313994279,1707918698546,-1675.75,0.00037808,2]
[313994280,1707918698556,-519.34552307,0.00037808,2]
[313994281,1707918698566,-500.0,0.00037808,2]
[313994282,1707918698577,-500.0,0.00037808,2]
[313994283,1707918698588,-556.23579879,0.00037808,2]
[313994284,1707918698599,-589.43,0.00037808,2]
[313994285,1707918698609,-500.0,0.00037808,2]
[313994286,1707918698620,-577.93,0.00037808,2]
[313994287,1707918698633,-832.53,0.00037808,2]
[313994288,1707918698644,-500.0,0.00037808,2]
[313994289,1707918698655,-500.0,0.00037808,2]
[313994290,1707918698665,-731.74,0.00037808,2]
[313994291,1707918698678,-939.6,0.00037808,2]
[313994292,1707918698689,-618.79,0.00037808,2]
[313994293,1707918698699,-702.08,0.00037808,2]
[313994294,1707918698711,-500.0,0.00037808,2]
[313994295,1707918698722,-500.0,0.00037808,2]
[313994296,1707918698733,-1511.48,0.00037808,2]
[313994297,1707918698745,-500.0,0.00037808,2]
[313994298,1707918698756,-1556.11,0.00037808,2]
[313994299,1707918698767,-525.66,0.00037808,2]
[313994300,1707918698778,-500.0,0.00037808,2]
[313994301,1707918698789,-500.0,0.00037808,2]
[313994302,1707918698800,-500.0,0.00037808,2]
[313994303,1707918698811,-635.32,0.00037808,2]
[313994304,1707918698821,-730.57,0.00037808,2]
[313994305,1707918698832,-694.15,0.00037808,2]
[313994306,1707918698842,-500.0,0.00037808,2]
[313994307,1707918698854,-500.0,0.00037808,2]
[313994308,1707918698864,-512.15,0.00037808,2]
[313994309,1707918698874,-4300.1,0.00037808,2]
[313994310,1707918698885,-500.0,0.00037808,2]
[313994311,1707918698896,-553.65,0.00037808,2]
[313994312,1707918698906,-500.0,0.00037808,2]
[313994313,1707918698917,-1367.49,0.00037808,2]
[313994314,1707918698928,-797.14,0.00037808,2]
[313994315,1707918698939,-1107.84,0.00037808,2]
[313994316,1707918698951,-1628.57,0.00037808,2]
[313994317,1707918698961,-2703.32,0.00037808,2]
[313994318,1707918698971,-500.0,0.00037808,2]
[313994319,1707918698982,-500.0,0.00037808,2]
[313994320,1707918698993,-500.0,0.00037808,2]
[313994321,1707918699003,-500.0,0.00037808,2]
[313994322,1707918699014,-1290.42,0.00037808,2]
[313994323,1707918699024,-500.0,0.00037808,2]
[313994324,1707918699034,-572.56,0.00037808,2]
[313994325,1707918699044,-2835.77,0.00037808,2]
[313994326,1707918699055,-1120.47,0.00037808,2]
[313994327,1707918699066,-500.0,0.00037808,2]
[313994328,1707918699076,-500.0,0.00037808,2]
[313994329,1707918699086,-1443.05,0.00037808,2]
[313994330,1707918699097,-517.14,0.00037808,2]
[313994331,1707918699107,-500.0,0.00037808,2]
[313994332,1707918699117,-4292.73,0.00037808,2]
[313994333,1707918699127,-786.93,0.00037808,2]
[313994334,1707918699137,-1168.95,0.00037808,2]
[313994335,1707918699148,-500.0,0.00037808,2]
[313994336,1707918699158,-1720.24,0.00037808,2]
[313994337,1707918699167,-1074.02,0.00037808,2]
[313994338,1707918699178,-775.06,0.00037808,2]
[313994339,1707918699188,-500.0,0.00037808,2]
[313994340,1707918699198,-500.0,0.00037808,2]
[313994341,1707918699208,-500.0,0.00037808,2]
[313994342,1707918699218,-1078.87,0.00037808,2]
[313994343,1707918699228,-5058.48,0.00037808,2]
[313994344,1707918699238,-500.0,0.00037808,2]
[313994345,1707918699248,-766.12,0.00037808,2]
[313994346,1707918699258,-500.0,0.00037808,2]
[313994347,1707918699268,-500.0,0.00037808,2]
[313994348,1707918699278,-12071.62,0.00037808,2]
[313994349,1707918699289,-662.79,0.00037808,2]
[313994350,1707918699300,-1066.1,0.00037808,2]
[313994351,1707918699309,-500.0,0.00037808,2]
[313994352,1707918699320,-500.0,0.00037808,2]
[313994353,1707918699331,-500.0,0.00037808,2]